bitfinex-derivatives/quotes_SOLF0:USTF0_20250716
["timestamp","ask_amount","ask_price","bid_price","bid_amount"]
[1752677730369,14.6469881,167.34,167.28,84.1452]
[1752677730566,8.6725881,167.34,167.28,84.1452]
[1752677730771,214.23160834,167.42,167.29,92.8177881]
[1752677730972,8.6725881,167.38,167.29,8.6725881]
[1752677731174,5.973,167.38,167.31,5.9753]
[1752677731377,8.6725881,167.39,167.3,84.1452]
[1752677731569,5.973,167.38,167.31,90.1203]
[1752677731874,8.6725881,167.4,167.31,8.6725881]
[1752677732074,8.6725881,167.4,167.32,84.1452]
[1752677732477,8.6725881,167.4,167.33,84.1452]
[1752677732674,8.6725881,167.4,167.3,8.6725881]
[1752677732876,8.6725881,167.4,167.31,84.1452]
[1752677733276,5.9725,167.4,167.33,5.9744]
[1752677733482,8.6725881,167.41,167.32,8.6725881]
[1752677733687,8.6725881,167.41,167.33,84.1452]
[1752677734085,8.6725881,167.41,167.34,84.1452]
[1752677734283,8.6725881,167.41,167.3,8.6725881]
[1752677734482,8.6725881,167.41,167.31,84.1452]
[1752677734682,8.6725881,167.37,167.31,84.1452]
[1752677734878,202.23986135,167.42,167.32,84.1452]
[1752677735084,5.9734,167.37,167.31,5.9751]
[1752677735388,8.6725881,167.38,167.31,5.9751]
[1752677735587,8.6725881,167.38,167.32,84.1452]
[1752677736081,202.23986135,167.42,167.33,84.1452]
[1752677736280,8.6725881,167.34,167.25,84.1452]
[1752677736485,8.6725881,167.32,167.26,2.8501335]
[1752677736680,8.6725881,167.32,167.21,92.8177881]
[1752677736885,8.6725881,167.32,167.22,86.99583652]
[1752677737087,5.9756,167.31,167.23,2.85063652]
[1752677737389,5.9756,167.31,167.24,2.85036747]
[1752677737589,5.9756,167.31,167.25,8.82786747]
[1752677737789,8.6725881,167.4,167.26,2.85036747]
[1752677737992,8.6725881,167.35,167.26,84.1452]
[1752677738179,8.6725881,167.35,167.27,84.1452]
[1752677738488,8.6725881,167.35,167.27,8.6725881]
[1752677738687,8.6725881,167.35,167.28,84.1452]
[1752677739188,8.6725881,167.35,167.29,84.1452]
[1752677739388,8.6725881,167.37,167.27,8.6725881]
[1752677739784,8.6725881,167.37,167.3,5.9755]
[1752677739785,5.9737,167.36,167.3,5.9755]
[1752677739985,5.9737,167.36,167.28,92.8177881]
[1752677739986,8.6725881,167.37,167.28,8.6725881]
[1752677740185,8.6725881,167.37,167.29,84.1452]
[1752677740390,8.6725881,167.37,167.3,5.9756]
[1752677740391,5.9739,167.36,167.3,5.9756]
[1752677740689,5.9739,167.36,167.3,90.1208]
[1752677740988,5.9739,167.36,167.31,84.1452]
[1752677741188,14.6459881,167.37,167.31,90.1206]
[1752677741389,14.6459881,167.37,167.32,84.1452]
[1752677741687,14.6459881,167.37,167.33,84.1452]
[1752677741882,14.6459881,167.37,167.32,84.1452]
[1752677742084,14.6459881,167.37,167.33,84.1452]
[1752677742285,14.6459881,167.37,167.32,84.1452]
[1752677742893,14.6459881,167.37,167.33,84.1452]
[1752677743089,14.6459881,167.37,167.32,84.1452]
[1752677743289,8.6725881,167.39,167.32,84.1452]
[1752677743487,8.6725881,167.39,167.33,84.1452]
[1752677743789,8.6725881,167.39,167.31,84.1452]
[1752677744196,8.6725881,167.37,167.32,84.1452]
[1752677744397,8.6725881,167.37,167.32,5.9748]
[1752677744594,8.6725881,167.37,167.33,84.1452]
[1752677744995,5.9732,167.38,167.34,84.1452]
[1752677745196,8.6725881,167.39,167.34,84.1452]
[1752677745393,8.6725881,167.39,167.35,84.1452]
[1752677745593,8.6725881,167.39,167.3,84.1452]
[1752677745799,8.6725881,167.37,167.28,8.6725881]
[1752677746098,8.6725881,167.37,167.29,84.1452]
[1752677746396,8.6725881,167.38,167.32,5.9748]
[1752677746793,14.6455881,167.38,167.33,84.1452]
[1752677747197,14.6455881,167.38,167.32,5.9748]
[1752677747198,14.6455881,167.38,167.34,84.1452]
[1752677747391,14.6455881,167.38,167.33,84.1452]
[1752677747597,8.6725881,167.38,167.33,84.1452]
[1752677747895,8.6725881,167.38,167.34,84.1452]
[1752677748198,8.6725881,167.37,167.27,8.6725881]
[1752677748399,8.6725881,167.37,167.28,84.1452]
[1752677748693,8.6725881,167.37,167.3,5.9755]
[1752677748892,8.6725881,167.37,167.31,84.1452]
[1752677749295,8.6725881,167.37,167.32,84.1452]
[1752677749490,8.6725881,167.37,167.29,8.6725881]
[1752677749696,5.973,167.38,167.33,5.9744]
[1752677750199,5.973,167.38,167.34,84.1452]
[1752677750401,5.9734,167.37,167.34,84.1452]
[1752677750596,5.9734,167.37,167.35,84.1452]
[1752677750797,5.9734,167.37,167.33,84.1452]
[1752677751302,5.973,167.38,167.34,84.1452]
[1752677751696,5.973,167.38,167.35,84.1452]
[1752677751897,14.6452881,167.39,167.34,90.1195]
[1752677752098,14.6452881,167.39,167.34,5.9743]
[1752677752301,14.6452881,167.39,167.35,84.1452]
[1752677752503,8.6725881,167.41,167.35,84.1452]
[1752677752804,8.6725881,167.41,167.36,84.1452]
[1752677752999,8.6725881,167.41,167.33,8.6725881]
[1752677753397,159.79840877,167.49,167.35,8.6725881]
[1752677753597,17.94,167.55,167.37,8.6725881]
[1752677753896,5.9702,167.46,167.37,8.6725881]
[1752677754100,5.9702,167.46,167.38,86.98503222]
[1752677754296,8.6725881,167.47,167.38,84.1452]
[1752677754498,8.6725881,167.47,167.39,84.1452]
[1752677754799,8.6725881,167.47,167.38,84.1452]
[1752677755298,5.9702,167.46,167.4,5.972]
[1752677755596,5.9702,167.46,167.41,84.1452]
[1752677755892,5.9702,167.46,167.38,84.1452]
[1752677756094,5.9705,167.45,167.38,84.1452]
[1752677756295,5.9705,167.45,167.39,84.1452]
[1752677756499,5.9705,167.45,167.39,5.9724]
[1752677756799,5.9705,167.45,167.4,84.1452]
[1752677757101,5.9701,167.46,167.4,90.1173]
[1752677757299,8.6725881,167.47,167.41,84.1452]
[1752677757499,8.6725881,167.47,167.42,84.1452]
[1752677757696,8.6725881,167.47,167.38,84.1452]
[1752677757897,5.9707,167.45,167.39,5.9723]
[1752677758095,5.9707,167.45,167.39,90.1175]
[1752677758293,8.6725881,167.47,167.4,84.1452]
[1752677758599,8.6725881,167.47,167.38,84.1452]
[1752677758800,1.03928683,167.51,167.4,5.9721]
[1752677759102,8.6725881,167.49,167.39,84.1452]
[1752677759303,5.9706,167.45,167.4,84.1452]
[1752677759501,8.6725881,167.47,167.4,84.1452]
[1752677759699,8.6725881,167.47,167.41,84.1452]
[1752677759902,5.9719,167.41,167.35,5.9737]
[1752677760097,8.6725881,167.42,167.33,84.1452]
[1752677760297,8.6725881,167.5,167.34,84.1452]
[1752677760298,8.6725881,167.4,167.34,84.1452]
[1752677760498,8.6725881,167.4,167.35,84.1452]
[1752677760698,26.6125881,167.5,167.31,84.1452]
[1752677760699,8.6725881,167.41,167.31,84.1452]
[1752677760899,8.6725881,167.39,167.31,84.1452]
[1752677761098,8.6725881,167.5,167.32,84.1452]
[1752677761304,8.6725881,167.37,167.31,84.1452]
[1752677761500,8.6725881,167.38,167.31,84.1452]
[1752677761802,8.6725881,167.39,167.32,84.1452]
[1752677762098,528.019,167.48,167.31,84.1452]
[1752677762399,8.6725881,167.4,167.31,84.1452]
[1752677762598,14.6449881,167.4,167.34,5.974]
[1752677762797,8.6725881,167.4,167.31,84.1452]
[1752677763098,14.6448881,167.4,167.34,5.9741]
[1752677763298,14.6448881,167.4,167.31,84.1452]
[1752677763299,8.6725881,167.4,167.32,84.1452]
[1752677763703,528.019,167.48,167.33,84.1452]
[1752677763898,516.08,167.48,167.33,8.6725881]
[1752677764097,516.08,167.48,167.34,84.1452]
[1752677764098,8.6725881,167.44,167.34,84.1452]
[1752677764501,8.6725881,167.44,167.35,84.1452]
[1752677764802,516.08,167.48,167.34,90.1194]
[1752677764803,8.6725881,167.4,167.34,90.1194]
[1752677764997,8.6725881,167.4,167.31,84.1452]
[1752677765397,8.6725881,167.4,167.35,5.9737]
[1752677765598,8.6725881,167.4,167.31,84.1452]
[1752677766101,8.6725881,167.38,167.32,84.1452]
[1752677766298,8.6725881,167.38,167.31,84.1452]
[1752677766499,8.6725881,167.36,167.31,84.1452]
[1752677766802,545.9588,167.48,167.32,84.1452]
[1752677767001,5.9734,167.37,167.31,84.1452]
[1752677767204,5.9734,167.37,167.32,84.1452]
[1752677767396,5.9734,167.37,167.3,204.8165496]
[1752677767397,8.6725881,167.39,167.31,84.1452]
[1752677767599,14.6451881,167.39,167.33,5.9744]
[1752677767801,8.6725881,167.39,167.33,5.9744]
[1752677768004,8.6725881,167.37,167.34,84.1452]
[1752677768194,8.6725881,167.37,167.33,84.1452]
[1752677768401,8.6725881,167.37,167.31,84.1452]
[1752677768794,8.6725881,167.37,167.3,204.8165496]
[1752677768795,5.9731,167.38,167.32,84.1452]
[1752677769096,8.6725881,167.42,167.31,92.8177881]
[1752677769302,8.6725881,167.42,167.33,8.6725881]
[1752677769498,8.6725881,167.43,167.34,2.841827]
[1752677769697,8.6725881,167.43,167.34,84.1452]
[1752677769898,516.08,167.48,167.35,84.1452]
[1752677770094,8.6725881,167.44,167.34,84.1452]
[1752677770297,8.6725881,167.44,167.35,11.51331346]
[1752677770605,14.6435881,167.44,167.39,5.9723]
[1752677770804,516.08,167.48,167.37,8.6725881]
[1752677771103,5.9709,167.44,167.37,84.1452]
[1752677771301,8.6725881,167.45,167.38,84.1452]
[1752677771504,8.6725881,167.45,167.35,8.6725881]
[1752677771696,5.9705,167.45,167.4,5.9721]
[1752677772004,5.9705,167.45,167.37,8.6725881]
[1752677772005,8.6725881,167.47,167.37,8.6725881]
[1752677772199,5.9704,167.46,167.41,5.9716]
[1752677772398,5.9704,167.46,167.38,86.98592019]
[1752677772399,8.6725881,167.47,167.38,84.1452]
[1752677772601,8.6725881,167.47,167.39,86.98644847]
[1752677772905,8.6725881,167.47,167.38,84.1452]
[1752677773105,8.6725881,167.47,167.39,2.84124847]
[1752677773410,5.9704,167.46,167.4,84.1452]
[1752677773703,8.6725881,167.47,167.38,84.1452]
[1752677774000,199.6,167.5,167.39,2.84222956]
[1752677774305,8.6725881,167.47,167.4,2.84222956]
[1752677774604,8.6725881,167.47,167.4,84.1452]
[1752677774903,5.9702,167.46,167.41,84.1452]
[1752677775103,5.9702,167.46,167.4,5.9721]
[1752677775104,5.9702,167.46,167.42,84.1452]
[1752677775301,8.6725881,167.47,167.37,8.6725881]
[1752677775502,8.6725881,167.49,167.39,8.6725881]
[1752677775702,8.6725881,167.49,167.4,2.84286246]
[1752677775901,5.9696,167.48,167.42,5.9713]
[1752677776110,8.6725881,167.49,167.42,5.9713]
[1752677776405,8.6725881,167.5,167.43,84.1452]
[1752677776597,14.6413881,167.5,167.4,207.7325881]
[1752677776800,14.6413881,167.5,167.41,86.98744211]
[1752677777101,14.6413881,167.5,167.42,2.84181191]
[1752677777313,14.6413881,167.5,167.43,86.98701191]
[1752677777603,14.6413881,167.5,167.4,207.7325881]
[1752677777604,14.6413881,167.5,167.45,5.9701]
[1752677777906,8.6725881,167.5,167.41,84.1452]
[1752677778106,8.6725881,167.5,167.4,207.7325881]
[1752677778107,8.6725881,167.5,167.43,5.9709]
[1752677778301,124.0,167.54,167.44,2.84004211]
[1752677778504,8.6725881,167.53,167.42,8.6725881]
[1752677778699,8.6725881,167.51,167.43,2.83882937]
[1752677778910,8.6725881,167.51,167.44,2.83882937]
[1752677779212,8.6725881,167.51,167.44,84.1452]
[1752677779404,8.6725881,167.51,167.45,84.1452]
[1752677779603,124.0,167.54,167.42,84.1452]
[1752677779802,5.969,167.5,167.45,5.9704]
[1752677780008,8.6725881,167.5,167.43,84.1452]
[1752677780203,8.6725881,167.51,167.42,84.1452]
[1752677780503,8.6725881,167.51,167.45,5.9702]
[1752677780899,8.6725881,167.51,167.46,84.1452]
[1752677781104,8.6725881,167.52,167.43,8.6725881]
[1752677781306,8.6725881,167.52,167.44,2.83459695]
[1752677781515,8.6725881,167.52,167.44,84.1452]
[1752677781703,124.0,167.54,167.45,84.1452]
[1752677782005,8.6725881,167.52,167.44,84.1452]
[1752677782306,8.6725881,167.5,167.44,84.1452]
[1752677782504,8.6725881,167.5,167.45,84.1452]
[1752677782705,14.6420881,167.48,167.42,5.9712]
[1752677782907,14.6420881,167.48,167.38,207.6725881]
[1752677783204,5.9699,167.47,167.42,5.9713]
[1752677783502,8.6725881,167.48,167.39,84.1452]
[1752677783701,8.6725881,167.48,167.4,86.9797022]
[1752677783909,5.9695,167.48,167.41,2.8345022]
[1752677784110,5.9695,167.48,167.42,2.8345022]
[1752677784412,14.6416881,167.49,167.43,2.83284325]
[1752677784609,14.6416881,167.49,167.43,84.1452]
[1752677784610,5.9691,167.49,167.43,84.1452]
[1752677784810,5.9691,167.49,167.44,84.1452]
[1752677785010,11.16080983,167.49,167.44,5.9705]
[1752677785205,5.9695,167.48,167.45,84.1452]
[1752677785411,5.19170983,167.49,167.44,5.9705]
[1752677785710,5.19170983,167.48,167.39,527.29690983]
[1752677785909,125.03914718,167.54,167.43,5.971]
[1752677786111,5.19170983,167.49,167.41,5.19170983]
[1752677786412,5.9694,167.48,167.42,2.83229943]
[1752677786604,5.19170983,167.49,167.45,5.9705]
[1752677786806,5.19170983,167.49,167.43,84.1452]
[1752677787113,145.4044743,167.6,167.48,84.1452]
[1752677787304,145.4044743,167.6,167.49,84.1452]
[1752677787305,5.19170983,167.54,167.49,84.1452]
[1752677787504,5.19170983,167.53,167.47,84.1452]
[1752677787705,5.19170983,167.53,167.45,5.19170983]
[1752677787906,5.19170983,167.53,167.46,84.1452]
[1752677788103,5.19170983,167.56,167.52,84.1452]
[1752677788310,5.19170983,167.54,167.41,84.1452]
[1752677788512,11.16150983,167.47,167.41,90.1168]
[1752677788707,5.19170983,167.47,167.42,86.97703416]
[1752677788911,8.65562883,167.48,167.43,2.83183416]
[1752677789214,132.65562883,167.51,167.44,84.1452]
[1752677789414,132.65562883,167.51,167.41,8.65562883]
[1752677789605,5.9687,167.5,167.42,86.97715755]
[1752677789810,1.03875946,167.59,167.43,11.48758638]
[1752677790005,8.65562883,167.56,167.45,8.65562883]
[1752677790209,8.65562883,167.55,167.45,8.65562883]
[1752677790417,8.65562883,167.53,167.46,84.1452]
[1752677790614,132.65562883,167.55,167.47,84.1452]
[1752677790809,5.9677,167.53,167.47,5.9694]
[1752677791014,132.65562883,167.55,167.48,84.1452]
[1752677791217,124.0,167.55,167.48,84.1452]
[1752677791417,5.9675,167.54,167.49,84.1452]
[1752677791619,1.03875946,167.59,167.49,84.1452]
[1752677791820,8.65562883,167.54,167.5,84.1452]
[1752677792121,8.65562883,167.54,167.44,8.65562883]
[1752677792312,124.0,167.58,167.45,84.1452]
[1752677792615,5.9678,167.53,167.47,5.9695]
[1752677792812,8.65562883,167.52,167.46,84.1452]
[1752677793007,8.65562883,167.5,167.45,5.9702]
[1752677793416,124.0,167.58,167.46,84.1452]
[1752677793615,124.0,167.58,167.44,5.9706]
[1752677793616,14.62462883,167.5,167.44,5.9706]
[1752677794016,14.62462883,167.5,167.45,84.1452]
[1752677794212,14.62462883,167.5,167.4,8.65562883]
[1752677794213,5.9691,167.49,167.41,84.1452]
[1752677794413,8.65562883,167.5,167.42,2.85932496]
[1752677794616,8.65562883,167.5,167.44,5.9705]
[1752677794816,8.65562883,167.5,167.43,84.1452]
[1752677795116,8.65562883,167.5,167.44,84.1452]
[1752677795317,14.62452883,167.5,167.45,90.1153]
[1752677795517,8.65562883,167.5,167.43,84.1452]
[1752677795714,8.65562883,167.48,167.44,2.8601292]
[1752677795910,8.65562883,167.46,167.36,8.65562883]
[1752677796114,199.2,167.57,167.37,2.86116718]
[1752677796318,8.65562883,167.45,167.4,5.9722]
[1752677796616,8.65562883,167.45,167.41,2.86116718]
[1752677796815,8.65562883,167.46,167.42,2.86116718]
[1752677797019,14.62602883,167.46,167.37,84.1452]
[1752677797216,8.65562883,167.46,167.38,2.86233863]
[1752677797415,5.9709,167.44,167.39,87.00834359]
[1752677797718,8.65562883,167.46,167.4,87.00834359]
[1752677797914,8.65562883,167.46,167.41,2.86314359]
[1752677798114,8.65562883,167.46,167.42,2.86331774]
[1752677798318,13.30484988,167.55,167.37,84.1452]
[1752677798622,5.97,167.47,167.42,5.9713]
[1752677798920,14.62562883,167.47,167.42,5.9713]
[1752677799118,14.62562883,167.47,167.43,84.1452]
[1752677799325,5.9702,167.46,167.43,84.1452]
[1752677799517,5.9702,167.46,167.44,84.1452]
[1752677799717,5.9701,167.46,167.41,5.9717]
[1752677800119,13.30484988,167.55,167.42,84.1452]
[1752677800319,5.9693,167.49,167.44,5.9707]
[1752677800520,8.65562883,167.5,167.4,8.65562883]
[1752677800719,515.78,167.56,167.37,440.6]
[1752677800720,8.65562883,167.46,167.39,84.1452]
[1752677800920,8.65562883,167.46,167.42,5.9715]
[1752677801218,8.65562883,167.46,167.38,84.1452]
[1752677801522,8.65562883,167.46,167.37,210.09562883]
[1752677801523,8.65562883,167.48,167.39,95.66696667]
[1752677801720,8.65562883,167.48,167.4,84.1452]
[1752677801913,8.65562883,167.48,167.44,5.9707]
[1752677802118,8.65562883,167.52,167.47,84.1452]
[1752677802319,8.65562883,167.52,167.42,84.1452]
[1752677802623,8.65562883,167.53,167.43,8.65562883]
[1752677802823,8.65562883,167.53,167.43,92.80082883]
[1752677803014,14.62342883,167.53,167.48,5.9691]
[1752677803218,8.65562883,167.53,167.44,84.1452]
[1752677803424,8.65562883,167.56,167.46,8.65562883]
[1752677803620,8.65562883,167.57,167.47,2.86174331]
[1752677803827,8.65562883,167.55,167.47,84.1452]
[1752677804021,5.9676,167.53,167.49,5.969]
[1752677804217,8.65562883,167.56,167.5,84.1452]
[1752677804424,8.65562883,167.56,167.46,8.65562883]
[1752677804725,5.9674,167.54,167.47,84.1452]
[1752677805120,5.9674,167.54,167.48,84.1452]
[1752677805423,5.9674,167.54,167.49,5.9688]
[1752677805621,8.65562883,167.57,167.53,84.1452]
[1752677805825,124.0,167.59,167.54,84.1452]
[1752677806128,132.65562883,167.59,167.48,8.65562883]
[1752677806321,132.65562883,167.59,167.52,5.9678]
[1752677806516,5.966,167.58,167.49,84.1452]
[1752677806720,132.65562883,167.59,167.5,87.00466331]
[1752677806923,132.65562883,167.59,167.49,84.1452]
[1752677807123,132.65562883,167.59,167.5,2.85935079]
[1752677807325,132.65562883,167.59,167.5,84.1452]
[1752677807622,132.65562883,167.59,167.51,84.1452]
[1752677807827,132.65562883,167.59,167.49,84.1452]
[1752677808425,132.65562883,167.59,167.5,84.1452]
[1752677808626,132.65562883,167.59,167.49,84.1452]
[1752677808828,5.9664,167.57,167.5,2.85855492]
[1752677809021,132.65562883,167.59,167.5,84.1452]
[1752677809223,5.9663,167.57,167.51,84.1452]
[1752677809426,8.65562883,167.6,167.54,5.9671]
[1752677809622,200.78,167.64,167.54,5.9671]
[1752677809823,5.9657,167.59,167.55,84.1452]
[1752677810127,8.65562883,167.61,167.51,84.1452]
[1752677810323,124.0,167.63,167.52,84.1452]
[1752677810523,8.65562883,167.6,167.5,8.65562883]
[1752677810719,8.65562883,167.6,167.51,2.85729705]
[1752677810916,5.9661,167.58,167.52,2.85715828]
[1752677811117,8.65562883,167.6,167.52,84.1452]
[1752677811326,8.65562883,167.6,167.53,84.1452]
[1752677811532,8.65562883,167.58,167.54,84.1452]
[1752677811724,8.65562883,167.58,167.48,8.65562883]
[1752677812024,8.65562883,167.6,167.53,5.9675]
[1752677812418,8.65562883,167.6,167.54,84.1452]
[1752677812727,8.65562883,167.6,167.51,84.1452]
[1752677813122,5.966,167.58,167.52,84.1452]
[1752677813321,8.65562883,167.58,167.48,208.77562883]
[1752677813521,8.65562883,167.58,167.49,87.00729728]
[1752677813724,5.9668,167.56,167.51,5.9681]
[1752677813934,8.65562883,167.58,167.5,84.1452]
[1752677814230,5.9661,167.58,167.51,2.86181681]
[1752677814420,8.65562883,167.6,167.51,84.1452]
[1752677814626,8.65562883,167.6,167.52,84.1452]
[1752677814827,8.65562883,167.62,167.52,8.65562883]
[1752677815133,5.18492526,167.61,167.53,89.33012526]
[1752677815331,5.18492526,167.61,167.56,5.9665]
[1752677815332,5.9652,167.6,167.56,5.9665]
[1752677815832,5.9652,167.6,167.57,84.1452]
[1752677816033,5.9652,167.6,167.55,5.9667]
[1752677816232,11.14972526,167.61,167.56,84.1452]
[1752677816434,11.14972526,167.61,167.54,84.1452]
[1752677816731,11.14972526,167.61,167.55,84.1452]
[1752677816928,5.9651,167.6,167.55,5.9667]
[1752677817128,5.9651,167.6,167.56,84.1452]
[1752677817328,124.0,167.63,167.56,84.1452]
[1752677817529,135.14922526,167.63,167.57,84.1452]
[1752677817831,5.18492526,167.63,167.55,5.18492526]
[1752677818030,11.14902526,167.63,167.56,84.1452]
[1752677818229,1.03835653,167.67,167.56,84.1452]
[1752677818433,124.0,167.66,167.59,5.9652]
[1752677818735,5.18492526,167.65,167.53,84.1452]
[1752677818929,5.18492526,167.65,167.57,5.18492526]
[1752677819236,5.9637,167.65,167.6,5.9649]
[1752677819434,5.9637,167.65,167.61,84.1452]
[1752677819734,5.9631,167.66,167.61,84.1452]
[1752677819930,124.0,167.69,167.62,84.1452]
[1752677820134,5.18492526,167.67,167.6,84.1452]
[1752677820534,5.18492526,167.63,167.46,16.92654616]
[1752677820734,5.18492526,167.59,167.47,91.91378267]
[1752677820931,5.18492526,167.68,167.51,5.18492526]
[1752677821130,5.18492526,167.58,167.52,2.85871347]
[1752677821329,5.18492526,167.62,167.53,87.00451043]
[1752677821531,5.18492526,167.68,167.47,200.34]
[1752677821532,5.18492526,167.63,167.57,5.9659]
[1752677821834,5.9645,167.62,167.55,5.18492526]
[1752677822031,125.03815519,167.69,167.57,5.18492526]
[1752677822236,5.18492526,167.76,167.58,2.85673168]
[1752677822438,5.18492526,167.7,167.62,5.18492526]
[1752677822937,5.9613,167.71,167.64,5.18492526]
[1752677823137,124.0,167.75,167.66,5.18492526]
[1752677823434,5.9611,167.72,167.66,5.18492526]
[1752677823741,5.18492526,167.74,167.67,84.1452]
[1752677823939,129.18492526,167.75,167.67,84.1452]
[1752677824238,129.18492526,167.75,167.68,84.1452]
[1752677824439,124.0,167.75,167.68,84.1452]
[1752677824630,5.18492526,167.74,167.69,84.1452]
[1752677824831,5.18492526,167.72,167.68,84.1452]
[1752677825039,5.18492526,167.72,167.63,5.18492526]
[1752677825040,5.18492526,167.7,167.62,5.18492526]
[1752677825336,5.18492526,167.72,167.64,5.18492526]
[1752677825537,5.9615,167.71,167.64,5.18492526]
[1752677825738,124.0,167.74,167.65,84.1452]
[1752677825739,5.18492526,167.7,167.65,84.1452]
[1752677826039,5.18492526,167.68,167.6,89.33012526]
[1752677826236,11.14742526,167.68,167.6,5.18492526]
[1752677826436,5.18492526,167.68,167.61,84.1452]
[1752677826633,5.18492526,167.68,167.61,5.18492526]
[1752677826836,5.18492526,167.68,167.62,84.1452]
[1752677827036,8.63398763,167.67,167.62,84.1452]
[1752677827238,8.63398763,167.67,167.63,84.1452]
[1752677827538,8.63398763,167.69,167.63,5.9638]
[1752677827737,124.0,167.74,167.64,84.1452]
[1752677827941,162.34842407,167.85,167.71,5.9609]
[1752677828134,349.02357419,167.85,167.66,8.63398763]
[1752677828341,8.63398763,167.75,167.66,8.63398763]
[1752677828637,132.63398763,167.75,167.67,84.1452]
[1752677828836,8.63398763,167.73,167.67,84.1452]
[1752677829139,8.63398763,167.74,167.68,84.1452]
[1752677829339,8.63398763,167.74,167.66,8.63398763]
[1752677829340,8.63398763,167.75,167.65,84.1452]
[1752677829542,8.63398763,167.75,167.7,5.9612]
[1752677829741,8.63398763,167.75,167.66,92.77918763]
[1752677830041,11.9104,167.89,167.74,84.1452]
[1752677830236,8.63398763,167.84,167.74,8.63398763]
[1752677830440,8.63398763,167.82,167.75,84.1452]
[1752677830641,8.63398763,167.82,167.74,200.0]
[1752677830833,124.0,167.86,167.74,8.63398763]
[1752677831035,132.63398763,167.86,167.78,5.9585]
[1752677831239,8.63398763,167.84,167.75,84.1452]
[1752677831444,8.63398763,167.82,167.76,84.1452]
[1752677831635,8.63398763,167.82,167.77,5.9588]
[1752677831838,8.63398763,167.82,167.77,90.104]
[1752677832134,8.63398763,167.82,167.78,84.1452]
[1752677832333,8.63398763,167.82,167.75,199.9]
[1752677832334,8.63398763,167.8,167.75,5.9597]
[1752677832540,8.63398763,167.8,167.76,84.1452]
[1752677832841,8.63398763,167.9,167.79,84.1452]
[1752677833033,8.63398763,167.84,167.8,84.1452]
[1752677833238,8.63398763,167.82,167.78,84.1452]
[1752677833441,124.0,167.89,167.75,84.1452]
[1752677833639,8.63398763,167.79,167.75,84.1452]
[1752677833836,8.63398763,167.77,167.68,515.08]
[1752677834050,8.63398763,167.73,167.69,84.1452]
[1752677834244,8.63398763,167.73,167.72,84.1452]
[1752677834445,8.63398763,167.73,167.68,84.1452]
[1752677834642,8.63398763,167.73,167.7,5.9613]
[1752677834841,8.63398763,167.73,167.69,84.1452]
[1752677835041,8.63398763,167.73,167.68,84.1452]
[1752677835242,8.63398763,167.71,167.68,84.1452]
[1752677835444,8.63398763,167.72,167.69,84.1452]
[1752677835743,8.63398763,167.72,167.7,5.9613]
[1752677835943,8.63398763,167.72,167.71,84.1452]
[1752677836345,8.63398763,167.8,167.71,84.1452]
[1752677836641,8.63398763,167.8,167.63,515.08]
[1752677836642,8.63398763,167.72,167.63,515.08]
[1752677836847,8.63398763,167.7,167.64,84.1452]
[1752677837047,8.63398763,167.68,167.64,84.1452]
[1752677837247,8.63398763,167.69,167.68,5.9622]
[1752677837442,8.63398763,167.69,167.64,84.1452]
[1752677837647,8.63398763,167.69,167.68,84.1452]
[1752677838547,8.63398763,167.69,167.68,90.1075]
[1752677839647,8.63398763,167.69,167.68,84.1452]
[1752677840051,8.63398763,167.69,167.65,198.88]
[1752677840551,8.63398763,167.71,167.68,84.1452]
[1752677840753,8.63398763,167.71,167.69,84.1452]
[1752677840940,8.63398763,167.71,167.66,84.1452]
[1752677841146,14.59538763,167.71,167.66,90.1079]
[1752677841454,8.63398763,167.71,167.67,84.1452]
[1752677841645,8.63398763,167.71,167.67,5.9624]
[1752677841846,11.9151,167.82,167.68,84.1452]
[1752677842045,11.9151,167.82,167.66,84.1452]
[1752677842046,8.63398763,167.72,167.66,84.1452]
[1752677842549,8.63398763,167.7,167.67,84.1452]
[1752677842850,8.63398763,167.7,167.66,84.1452]
[1752677843254,8.63398763,167.69,167.68,5.962]
[1752677843457,11.9151,167.82,167.66,84.1452]
[1752677843650,8.63398763,167.67,167.66,84.1452]
[1752677843846,8.63398763,167.69,167.67,84.1452]
[1752677844354,8.63398763,167.69,167.63,521.0438]
[1752677844551,8.63398763,167.66,167.64,84.1452]